Workbook

Sheet Simulation1
A1: Infektionsausbreitung bei statischen Kontakten
D31: Rayleigh-Verteilung
D32: Konstante Schrittlänge
D33: Gittersprünge
A38: N | B38: x | C38: y | D38: è | E38: Infektiosität | G38: von Tag | H38: 4 | I38: bis Tag | J38: 8
A39: 1 | B39: 0.03125 | C39: 0.03125 | F39: Wahrscheinlichkeit | G39: 0.25 | I39: Impfquote | J39: 0.75
A40: 2 | B40: 0.03125 | C40: 0.0625 | F40: pro Kontakt | I40: Impfschutz | J40: 0.9
A41: 3 | B41: 0.03125 | C41: 0.09375
A42: 4 | B42: 0.03125 | C42: 0.125 | H42: 20
A43: 5 | B43: 0.03125 | C43: 0.15625 | I43: Pause [s] = | J43: 0.1
A44: 6 | B44: 0.03125 | C44: 0.1875
A45: 7 | B45: 0.03125 | C45: 0.21875 | E45: Statistik: | F45: Geimpft | G45: 0.7169614984 | I45: • Init: | J45: 0.7356919875
A46: 8 | B46: 0.03125 | C46: 0.25 | F46: Ungeschützt | G46: 0.2382934443 | I46: • | J46: 0.2632674298
A47: 9 | B47: 0.03125 | C47: 0.28125 | F47: Infiziert | G47: 0 | I47: •
A48: 10 | B48: 0.03125 | C48: 0.3125 | F48: Infektiös | G48: 0 | I48: •
A49: 11 | B49: 0.03125 | C49: 0.34375 | F49: Genesen | G49: 0.04474505723 | I49: •
A50: 12 | B50: 0.03125 | C50: 0.375
A51: 13 | B51: 0.03125 | C51: 0.40625 | E51: Erläuterungen:
A52: 14 | B52: 0.03125 | C52: 0.4375 | E52: Bei dieser Simulation hat jeder 8 feste Kontakte.
A53: 15 | B53: 0.03125 | C53: 0.46875 | E53: Sie beginnt mit einem Infizierten und endet, wenn keine
A54: 16 | B54: 0.03125 | C54: 0.5 | E54: Infizierten (infektiös oder nicht) mehr vorhanden sind.
A55: 17 | B55: 0.03125 | C55: 0.53125
A56: 18 | B56: 0.03125 | C56: 0.5625
A57: 19 | B57: 0.03125 | C57: 0.59375
A58: 20 | B58: 0.03125 | C58: 0.625
A59: 21 | B59: 0.03125 | C59: 0.65625
A60: 22 | B60: 0.03125 | C60: 0.6875
A61: 23 | B61: 0.03125 | C61: 0.71875
A62: 24 | B62: 0.03125 | C62: 0.75
A63: 25 | B63: 0.03125 | C63: 0.78125
A64: 26 | B64: 0.03125 | C64: 0.8125
A65: 27 | B65: 0.03125 | C65: 0.84375
A66: 28 | B66: 0.03125 | C66: 0.875
A67: 29 | B67: 0.03125 | C67: 0.90625
A68: 30 | B68: 0.03125 | C68: 0.9375
A69: 31 | B69: 0.03125 | C69: 0.96875
A70: 32 | B70: 0.0625 | C70: 0.03125
A71: 33 | B71: 0.0625 | C71: 0.0625
A72: 34 | B72: 0.0625 | C72: 0.09375
A73: 35 | B73: 0.0625 | C73: 0.125
A74: 36 | B74: 0.0625 | C74: 0.15625
A75: 37 | B75: 0.0625 | C75: 0.1875
A76: 38 | B76: 0.0625 | C76: 0.21875
A77: 39 | B77: 0.0625 | C77: 0.25
A78: 40 | B78: 0.0625 | C78: 0.28125
A79: 41 | B79: 0.0625 | C79: 0.3125
A80: 42 | B80: 0.0625 | C80: 0.34375
A81: 43 | B81: 0.0625 | C81: 0.375
A82: 44 | B82: 0.0625 | C82: 0.40625
A83: 45 | B83: 0.0625 | C83: 0.4375
A84: 46 | B84: 0.0625 | C84: 0.46875
A85: 47 | B85: 0.0625 | C85: 0.5
A86: 48 | B86: 0.0625 | C86: 0.53125
A87: 49 | B87: 0.0625 | C87: 0.5625
A88: 50 | B88: 0.0625 | C88: 0.59375
A89: 51 | B89: 0.0625 | C89: 0.625
A90: 52 | B90: 0.0625 | C90: 0.65625
A91: 53 | B91: 0.0625 | C91: 0.6875
A92: 54 | B92: 0.0625 | C92: 0.71875
A93: 55 | B93: 0.0625 | C93: 0.75
A94: 56 | B94: 0.0625 | C94: 0.78125
A95: 57 | B95: 0.0625 | C95: 0.8125
A96: 58 | B96: 0.0625 | C96: 0.84375
A97: 59 | B97: 0.0625 | C97: 0.875
A98: 60 | B98: 0.0625 | C98: 0.90625
A99: 61 | B99: 0.0625 | C99: 0.9375
A100: 62 | B100: 0.0625 | C100: 0.96875
A101: 63 | B101: 0.09375 | C101: 0.03125
A102: 64 | B102: 0.09375 | C102: 0.0625
A103: 65 | B103: 0.09375 | C103: 0.09375
A104: 66 | B104: 0.09375 | C104: 0.125
A105: 67 | B105: 0.09375 | C105: 0.15625
A106: 68 | B106: 0.09375 | C106: 0.1875
A107: 69 | B107: 0.09375 | C107: 0.21875
A108: 70 | B108: 0.09375 | C108: 0.25
A109: 71 | B109: 0.09375 | C109: 0.28125
A110: 72 | B110: 0.09375 | C110: 0.3125
A111: 73 | B111: 0.09375 | C111: 0.34375
A112: 74 | B112: 0.09375 | C112: 0.375
A113: 75 | B113: 0.09375 | C113: 0.40625
A114: 76 | B114: 0.09375 | C114: 0.4375
A115: 77 | B115: 0.09375 | C115: 0.46875
A116: 78 | B116: 0.09375 | C116: 0.5
A117: 79 | B117: 0.09375 | C117: 0.53125
A118: 80 | B118: 0.09375 | C118: 0.5625
A119: 81 | B119: 0.09375 | C119: 0.59375
A120: 82 | B120: 0.09375 | C120: 0.625
A121: 83 | B121: 0.09375 | C121: 0.65625
A122: 84 | B122: 0.09375 | C122: 0.6875
A123: 85 | B123: 0.09375 | C123: 0.71875
A124: 86 | B124: 0.09375 | C124: 0.75
A125: 87 | B125: 0.09375 | C125: 0.78125
A126: 88 | B126: 0.09375 | C126: 0.8125
A127: 89 | B127: 0.09375 | C127: 0.84375
A128: 90 | B128: 0.09375 | C128: 0.875
A129: 91 | B129: 0.09375 | C129: 0.90625
A130: 92 | B130: 0.09375 | C130: 0.9375
A131: 93 | B131: 0.09375 | C131: 0.96875
A132: 94 | B132: 0.125 | C132: 0.03125
A133: 95 | B133: 0.125 | C133: 0.0625
A134: 96 | B134: 0.125 | C134: 0.09375
A135: 97 | B135: 0.125 | C135: 0.125
A136: 98 | B136: 0.125 | C136: 0.15625
A137: 99 | B137: 0.125 | C137: 0.1875
A138: 100 | B138: 0.125 | C138: 0.21875
A139: 101 | B139: 0.125 | C139: 0.25
A140: 102 | B140: 0.125 | C140: 0.28125
A141: 103 | B141: 0.125 | C141: 0.3125
A142: 104 | B142: 0.125 | C142: 0.34375
A143: 105 | B143: 0.125 | C143: 0.375
A144: 106 | B144: 0.125 | C144: 0.40625
A145: 107 | B145: 0.125 | C145: 0.4375
A146: 108 | B146: 0.125 | C146: 0.46875
A147: 109 | B147: 0.125 | C147: 0.5
A148: 110 | B148: 0.125 | C148: 0.53125
A149: 111 | B149: 0.125 | C149: 0.5625
A150: 112 | B150: 0.125 | C150: 0.59375
A151: 113 | B151: 0.125 | C151: 0.625
A152: 114 | B152: 0.125 | C152: 0.65625
A153: 115 | B153: 0.125 | C153: 0.6875
A154: 116 | B154: 0.125 | C154: 0.71875
A155: 117 | B155: 0.125 | C155: 0.75
A156: 118 | B156: 0.125 | C156: 0.78125
A157: 119 | B157: 0.125 | C157: 0.8125
A158: 120 | B158: 0.125 | C158: 0.84375
A159: 121 | B159: 0.125 | C159: 0.875
A160: 122 | B160: 0.125 | C160: 0.90625
A161: 123 | B161: 0.125 | C161: 0.9375
A162: 124 | B162: 0.125 | C162: 0.96875
A163: 125 | B163: 0.15625 | C163: 0.03125
A164: 126 | B164: 0.15625 | C164: 0.0625
A165: 127 | B165: 0.15625 | C165: 0.09375
A166: 128 | B166: 0.15625 | C166: 0.125
A167: 129 | B167: 0.15625 | C167: 0.15625
A168: 130 | B168: 0.15625 | C168: 0.1875
A169: 131 | B169: 0.15625 | C169: 0.21875
A170: 132 | B170: 0.15625 | C170: 0.25
A171: 133 | B171: 0.15625 | C171: 0.28125
A172: 134 | B172: 0.15625 | C172: 0.3125
A173: 135 | B173: 0.15625 | C173: 0.34375
A174: 136 | B174: 0.15625 | C174: 0.375
A175: 137 | B175: 0.15625 | C175: 0.40625
A176: 138 | B176: 0.15625 | C176: 0.4375
A177: 139 | B177: 0.15625 | C177: 0.46875
A178: 140 | B178: 0.15625 | C178: 0.5
A179: 141 | B179: 0.15625 | C179: 0.53125
A180: 142 | B180: 0.15625 | C180: 0.5625
A181: 143 | B181: 0.15625 | C181: 0.59375
A182: 144 | B182: 0.15625 | C182: 0.625
A183: 145 | B183: 0.15625 | C183: 0.65625
A184: 146 | B184: 0.15625 | C184: 0.6875
A185: 147 | B185: 0.15625 | C185: 0.71875
A186: 148 | B186: 0.15625 | C186: 0.75
A187: 149 | B187: 0.15625 | C187: 0.78125
A188: 150 | B188: 0.15625 | C188: 0.8125
A189: 151 | B189: 0.15625 | C189: 0.84375
A190: 152 | B190: 0.15625 | C190: 0.875
A191: 153 | B191: 0.15625 | C191: 0.90625
A192: 154 | B192: 0.15625 | C192: 0.9375
A193: 155 | B193: 0.15625 | C193: 0.96875
A194: 156 | B194: 0.1875 | C194: 0.03125
A195: 157 | B195: 0.1875 | C195: 0.0625
A196: 158 | B196: 0.1875 | C196: 0.09375
A197: 159 | B197: 0.1875 | C197: 0.125
A198: 160 | B198: 0.1875 | C198: 0.15625
A199: 161 | B199: 0.1875 | C199: 0.1875
A200: 162 | B200: 0.1875 | C200: 0.21875
A201: 163 | B201: 0.1875 | C201: 0.25
A202: 164 | B202: 0.1875 | C202: 0.28125
A203: 165 | B203: 0.1875 | C203: 0.3125
A204: 166 | B204: 0.1875 | C204: 0.34375
A205: 167 | B205: 0.1875 | C205: 0.375
A206: 168 | B206: 0.1875 | C206: 0.40625
A207: 169 | B207: 0.1875 | C207: 0.4375
A208: 170 | B208: 0.1875 | C208: 0.46875
A209: 171 | B209: 0.1875 | C209: 0.5
A210: 172 | B210: 0.1875 | C210: 0.53125
A211: 173 | B211: 0.1875 | C211: 0.5625
A212: 174 | B212: 0.1875 | C212: 0.59375
A213: 175 | B213: 0.1875 | C213: 0.625
A214: 176 | B214: 0.1875 | C214: 0.65625
A215: 177 | B215: 0.1875 | C215: 0.6875
A216: 178 | B216: 0.1875 | C216: 0.71875
A217: 179 | B217: 0.1875 | C217: 0.75
A218: 180 | B218: 0.1875 | C218: 0.78125
A219: 181 | B219: 0.1875 | C219: 0.8125
A220: 182 | B220: 0.1875 | C220: 0.84375
A221: 183 | B221: 0.1875 | C221: 0.875
A222: 184 | B222: 0.1875 | C222: 0.90625
A223: 185 | B223: 0.1875 | C223: 0.9375
A224: 186 | B224: 0.1875 | C224: 0.96875
A225: 187 | B225: 0.21875 | C225: 0.03125
A226: 188 | B226: 0.21875 | C226: 0.0625
A227: 189 | B227: 0.21875 | C227: 0.09375
A228: 190 | B228: 0.21875 | C228: 0.125
A229: 191 | B229: 0.21875 | C229: 0.15625
A230: 192 | B230: 0.21875 | C230: 0.1875
A231: 193 | B231: 0.21875 | C231: 0.21875
A232: 194 | B232: 0.21875 | C232: 0.25
A233: 195 | B233: 0.21875 | C233: 0.28125
... 766 more rows

Sheet Simulation2
A1: Infektionsausbreitung bei diffundierenden Kontakten
A38: N | B38: x | C38: y | D38: Parameter: | F38: Infektiosität | G38: von Tag | H38: 4 | I38: bis Tag | J38: 8
A39: 1 | B39: 5.728427339 | C39: 7.539571208 | G39: Wahrscheinlichkeit | H39: 0.25 | I39: Radius | J39: 2
A40: 2 | B40: 7.288188125 | C40: -17.08444986 | G40: Impfquote | H40: 0.5 | I40: Schutz | J40: 0.9
A41: 3 | B41: 14.31474345 | C41: 20.02616239 | D41: Diffusion:
A42: 4 | B42: -17.14348092 | C42: 8.10305917 | D42: μr = | E42: 1
A43: 5 | B43: -11.29725768 | C43: 8.192781575
A44: 6 | B44: 19.06267507 | C44: -6.075149809 | E44: Pause [s] = | F44: 0.01 | G44: 20
A45: 7 | B45: -3.319472713 | C45: -22.02255205
A46: 8 | B46: -1.626980283 | C46: 4.928588317 | E46: Statistik: | F46: Geimpft | G46: 0.421 | H46: •
A47: 9 | B47: 20.9147036 | C47: -6.165305167 | F47: Ungeschützt | G47: 0.205 | H47: •
A48: 10 | B48: -8.947280575 | C48: -2.353922185 | F48: Infiziert | G48: 0 | H48: •
A49: 11 | B49: 8.63656332 | C49: 4.858364551 | F49: Infektiös | G49: 0 | H49: •
A50: 12 | B50: -22.76348099 | C50: 10.03581179 | F50: Genesen | G50: 0.374 | H50: •
A51: 13 | B51: -20.03940204 | C51: -1.710620278
A52: 14 | B52: 0.8750062701 | C52: 1.199645581
A53: 15 | B53: -6.684019873 | C53: -7.841282765
A54: 16 | B54: 2.476924964 | C54: 9.975419902
A55: 17 | B55: -1.687055748 | C55: -21.63173152
A56: 18 | B56: -8.725197853 | C56: -10.67619096 | E56: Erläuterungen:
A57: 19 | B57: 11.02997103 | C57: -7.927015461 | E57: Die Punkte werden über die Fläche gleichmäßig verteilt.
A58: 20 | B58: 8.051709527 | C58: -8.049818647 | E58: Die Diffusion erfolgt mit Rayleigh-verteilten Schrittlängen
A59: 21 | B59: -18.87940015 | C59: -24.21853446 | E59: mit dem Mittelwert μr. Punkte, die auf einer Seite heraus-
A60: 22 | B60: -19.82530732 | C60: -15.89872698 | E60: wandern, kommen auf der gegenüberliegenden Seite
A61: 23 | B61: 21.91942297 | C61: 11.97906091 | E61: wieder herein.
A62: 24 | B62: -12.99354775 | C62: -23.40874983 | E62: Bei dieser Simulation müssen sich ein Infizierbarer und ein
A63: 25 | B63: 12.72411325 | C63: 16.36342288 | E63: Infektiöser innerhalb des angegebenen Radius befinden.
A64: 26 | B64: 22.32422505 | C64: -7.447088387 | E64: Eine Infizierung erfolgt dann mit der angegebenen Wahr-
A65: 27 | B65: 20.61262846 | C65: -9.146060139 | E65: scheinlichkeit.
A66: 28 | B66: -0.9203925549 | C66: 7.307355306
A67: 29 | B67: 17.77592989 | C67: -4.001091477
A68: 30 | B68: 22.68097498 | C68: 10.4146336
A69: 31 | B69: 10.86084201 | C69: -7.602405867
A70: 32 | B70: -13.98945579 | C70: -18.77169637
A71: 33 | B71: -0.8223534135 | C71: 0.9840143856
A72: 34 | B72: 17.33723501 | C72: -11.58964967
A73: 35 | B73: -0.5535419548 | C73: -3.104234711
A74: 36 | B74: -0.5069444866 | C74: -7.050467172
A75: 37 | B75: 9.167477757 | C75: -21.80089145
A76: 38 | B76: 4.6927841 | C76: -3.82398874
A77: 39 | B77: -11.32020405 | C77: -7.216367067
A78: 40 | B78: -22.15709049 | C78: -20.79853388
A79: 41 | B79: -22.37522745 | C79: -7.915234798
A80: 42 | B80: -0.3652650946 | C80: 6.982164612
A81: 43 | B81: -18.71186467 | C81: 22.77225383
A82: 44 | B82: 5.974409477 | C82: 16.44318856
A83: 45 | B83: -13.13411529 | C83: -13.30834865
A84: 46 | B84: 8.627687012 | C84: -11.95527759
A85: 47 | B85: 20.48457851 | C85: -16.0865837
A86: 48 | B86: 24.3512006 | C86: 20.65301954
A87: 49 | B87: 12.92355182 | C87: 9.644470977
A88: 50 | B88: -14.02178297 | C88: 3.820882173 | E88: Ausbreitungsverlauf
A89: 51 | B89: -4.162158144 | C89: 12.59802628 | G89: unge- | H89: infi- | I89: infek- | J89: ge-
A90: 52 | B90: 2.270227894 | C90: -5.673984453 | E90: Tag | F90: geimpft | G90: schützt | H90: ziert | I90: tiös | J90: nesen
A91: 53 | B91: 10.21745095 | C91: -3.152280868 | E91: 1 | F91: 0.519 | G91: 0.48 | H91: 0.001 | I91: 0 | J91: 0
A92: 54 | B92: 17.86216898 | C92: 15.73958338 | E92: 2 | F92: 0.519 | G92: 0.48 | H92: 0.001 | I92: 0 | J92: 0
A93: 55 | B93: -4.211372114 | C93: 11.75993244 | E93: 3 | F93: 0.519 | G93: 0.48 | H93: 0.001 | I93: 0 | J93: 0
A94: 56 | B94: -22.10688745 | C94: -23.22009896 | E94: 4 | F94: 0.519 | G94: 0.479 | H94: 0.001 | I94: 0.001 | J94: 0
A95: 57 | B95: 8.380587431 | C95: -3.953311971 | E95: 5 | F95: 0.519 | G95: 0.479 | H95: 0.001 | I95: 0.001 | J95: 0
A96: 58 | B96: -16.94407567 | C96: -20.63872183 | E96: 6 | F96: 0.519 | G96: 0.479 | H96: 0.001 | I96: 0.001 | J96: 0
A97: 59 | B97: -18.60074502 | C97: -12.16353751 | E97: 7 | F97: 0.519 | G97: 0.479 | H97: 0 | I97: 0.002 | J97: 0
A98: 60 | B98: 23.2273508 | C98: 12.66470997 | E98: 8 | F98: 0.519 | G98: 0.479 | H98: 0 | I98: 0.002 | J98: 0
A99: 61 | B99: 5.817704429 | C99: -16.23273824 | E99: 9 | F99: 0.519 | G99: 0.478 | H99: 0.001 | I99: 0.001 | J99: 0.001
A100: 62 | B100: 24.64494356 | C100: 11.63413095 | E100: 10 | F100: 0.519 | G100: 0.478 | H100: 0.001 | I100: 0.001 | J100: 0.001
A101: 63 | B101: 2.769747912 | C101: 0.729133434 | E101: 11 | F101: 0.519 | G101: 0.478 | H101: 0.001 | I101: 0.001 | J101: 0.001
A102: 64 | B102: -22.68540336 | C102: 11.17408249 | E102: 12 | F102: 0.519 | G102: 0.478 | H102: 0 | I102: 0.001 | J102: 0.002
A103: 65 | B103: -13.08686916 | C103: -21.50456169 | E103: 13 | F103: 0.519 | G103: 0.477 | H103: 0.001 | I103: 0.001 | J103: 0.002
A104: 66 | B104: -16.85842653 | C104: -18.85269815 | E104: 14 | F104: 0.519 | G104: 0.477 | H104: 0.001 | I104: 0.001 | J104: 0.002
A105: 67 | B105: 15.72361403 | C105: 18.21350974 | E105: 15 | F105: 0.519 | G105: 0.477 | H105: 0.001 | I105: 0.001 | J105: 0.002
A106: 68 | B106: 13.52083807 | C106: -9.077965908 | E106: 16 | F106: 0.519 | G106: 0.477 | H106: 0 | I106: 0.002 | J106: 0.002
A107: 69 | B107: 21.41258872 | C107: -8.61896093 | E107: 17 | F107: 0.519 | G107: 0.477 | H107: 0 | I107: 0.001 | J107: 0.003
A108: 70 | B108: -2.155566482 | C108: 6.014413359 | E108: 18 | F108: 0.518 | G108: 0.477 | H108: 0.001 | I108: 0.001 | J108: 0.003
A109: 71 | B109: -21.5547491 | C109: 0.7841018005 | E109: 19 | F109: 0.518 | G109: 0.476 | H109: 0.002 | I109: 0.001 | J109: 0.003
A110: 72 | B110: 11.49018464 | C110: 6.048116271 | E110: 20 | F110: 0.517 | G110: 0.475 | H110: 0.004 | I110: 0.001 | J110: 0.003
A111: 73 | B111: 19.26760621 | C111: -24.98324215 | E111: 21 | F111: 0.517 | G111: 0.475 | H111: 0.003 | I111: 0.001 | J111: 0.004
A112: 74 | B112: 2.793703389 | C112: -7.734713844 | E112: 22 | F112: 0.517 | G112: 0.475 | H112: 0.002 | I112: 0.002 | J112: 0.004
A113: 75 | B113: 1.531688347 | C113: -13.10561655 | E113: 23 | F113: 0.517 | G113: 0.475 | H113: 0 | I113: 0.004 | J113: 0.004
A114: 76 | B114: 21.40326599 | C114: 4.448237987 | E114: 24 | F114: 0.517 | G114: 0.475 | H114: 0 | I114: 0.004 | J114: 0.004
A115: 77 | B115: 19.26805737 | C115: -5.011591775 | E115: 25 | F115: 0.517 | G115: 0.474 | H115: 0.001 | I115: 0.004 | J115: 0.004
A116: 78 | B116: 8.432692517 | C116: 0.3791029713 | E116: 26 | F116: 0.517 | G116: 0.474 | H116: 0.001 | I116: 0.003 | J116: 0.005
A117: 79 | B117: -11.32183036 | C117: 14.83604993 | E117: 27 | F117: 0.517 | G117: 0.473 | H117: 0.002 | I117: 0.002 | J117: 0.006
A118: 80 | B118: 1.292415057 | C118: -6.795994541 | E118: 28 | F118: 0.517 | G118: 0.473 | H118: 0.001 | I118: 0.001 | J118: 0.008
A119: 81 | B119: -13.15687341 | C119: -9.005412032 | E119: 29 | F119: 0.517 | G119: 0.473 | H119: 0.001 | I119: 0.001 | J119: 0.008
A120: 82 | B120: 22.18714158 | C120: 20.53854464 | E120: 30 | F120: 0.517 | G120: 0.473 | H120: 0 | I120: 0.002 | J120: 0.008
A121: 83 | B121: -10.89182004 | C121: 19.8964061 | E121: 31 | F121: 0.517 | G121: 0.471 | H121: 0.002 | I121: 0.002 | J121: 0.008
A122: 84 | B122: -15.26580627 | C122: 2.257144917 | E122: 32 | F122: 0.517 | G122: 0.471 | H122: 0.002 | I122: 0.002 | J122: 0.008
A123: 85 | B123: -4.03159084 | C123: -6.054210852 | E123: 33 | F123: 0.517 | G123: 0.471 | H123: 0.002 | I123: 0.001 | J123: 0.009
A124: 86 | B124: 22.63968025 | C124: -10.98416299 | E124: 34 | F124: 0.516 | G124: 0.47 | H124: 0.002 | I124: 0.003 | J124: 0.009
A125: 87 | B125: -6.69434238 | C125: 12.62051931 | E125: 35 | F125: 0.516 | G125: 0.468 | H125: 0.004 | I125: 0.002 | J125: 0.01
A126: 88 | B126: -11.75260577 | C126: -17.75239582 | E126: 36 | F126: 0.515 | G126: 0.467 | H126: 0.006 | I126: 0.002 | J126: 0.01
A127: 89 | B127: -22.73310348 | C127: 19.47592997 | E127: 37 | F127: 0.515 | G127: 0.467 | H127: 0.004 | I127: 0.004 | J127: 0.01
A128: 90 | B128: 24.04679043 | C128: 1.023797118 | E128: 38 | F128: 0.514 | G128: 0.467 | H128: 0.003 | I128: 0.006 | J128: 0.01
A129: 91 | B129: -19.6682014 | C129: -17.25646822 | E129: 39 | F129: 0.514 | G129: 0.467 | H129: 0.001 | I129: 0.006 | J129: 0.012
A130: 92 | B130: -4.084914943 | C130: 10.17648164 | E130: 40 | F130: 0.513 | G130: 0.467 | H130: 0.002 | I130: 0.006 | J130: 0.012
A131: 93 | B131: -7.528348274 | C131: -1.049694014 | E131: 41 | F131: 0.513 | G131: 0.465 | H131: 0.003 | I131: 0.007 | J131: 0.012
A132: 94 | B132: -13.81227411 | C132: -0.797510082 | E132: 42 | F132: 0.513 | G132: 0.465 | H132: 0.003 | I132: 0.005 | J132: 0.014
A133: 95 | B133: -11.92399737 | C133: -22.58313307 | E133: 43 | F133: 0.513 | G133: 0.463 | H133: 0.004 | I133: 0.004 | J133: 0.016
A134: 96 | B134: -4.202808869 | C134: 2.383709078 | E134: 44 | F134: 0.513 | G134: 0.462 | H134: 0.003 | I134: 0.004 | J134: 0.018
A135: 97 | B135: -6.022163368 | C135: -12.50679818 | E135: 45 | F135: 0.512 | G135: 0.461 | H135: 0.005 | I135: 0.004 | J135: 0.018
A136: 98 | B136: -7.88375683 | C136: 5.651175389 | E136: 46 | F136: 0.512 | G136: 0.46 | H136: 0.004 | I136: 0.005 | J136: 0.019
A137: 99 | B137: -23.40133243 | C137: -19.73727057 | E137: 47 | F137: 0.512 | G137: 0.457 | H137: 0.006 | I137: 0.006 | J137: 0.019
A138: 100 | B138: -5.282895164 | C138: -11.5475927 | E138: 48 | F138: 0.511 | G138: 0.456 | H138: 0.006 | I138: 0.007 | J138: 0.02
A139: 101 | B139: 21.57632991 | C139: -3.698890413 | E139: 49 | F139: 0.511 | G139: 0.454 | H139: 0.007 | I139: 0.006 | J139: 0.022
A140: 102 | B140: -23.20191227 | C140: 22.35557613 | E140: 50 | F140: 0.51 | G140: 0.454 | H140: 0.005 | I140: 0.009 | J140: 0.022
A141: 103 | B141: -8.78519866 | C141: -3.630291318 | E141: 51 | F141: 0.509 | G141: 0.453 | H141: 0.005 | I141: 0.009 | J141: 0.024
A142: 104 | B142: -5.425243419 | C142: 9.761352199 | E142: 52 | F142: 0.508 | G142: 0.452 | H142: 0.005 | I142: 0.01 | J142: 0.025
A143: 105 | B143: 21.13077656 | C143: -15.52630437 | E143: 53 | F143: 0.507 | G143: 0.451 | H143: 0.006 | I143: 0.009 | J143: 0.027
A144: 106 | B144: 10.06717941 | C144: 13.97744854 | E144: 54 | F144: 0.506 | G144: 0.451 | H144: 0.005 | I144: 0.01 | J144: 0.028
A145: 107 | B145: -6.91192382 | C145: -9.974900075 | E145: 55 | F145: 0.505 | G145: 0.446 | H145: 0.009 | I145: 0.009 | J145: 0.031
A146: 108 | B146: -6.113759113 | C146: -11.52244756 | E146: 56 | F146: 0.504 | G146: 0.446 | H146: 0.008 | I146: 0.009 | J146: 0.033
A147: 109 | B147: 0.357465757 | C147: 15.35196547 | E147: 57 | F147: 0.502 | G147: 0.446 | H147: 0.009 | I147: 0.008 | J147: 0.035
A148: 110 | B148: 14.65674466 | C148: -13.97449019 | E148: 58 | F148: 0.502 | G148: 0.442 | H148: 0.007 | I148: 0.013 | J148: 0.036
A149: 111 | B149: -10.20243988 | C149: -18.94661642 | E149: 59 | F149: 0.502 | G149: 0.441 | H149: 0.007 | I149: 0.012 | J149: 0.038
A150: 112 | B150: 14.80644465 | C150: 22.13108429 | E150: 60 | F150: 0.502 | G150: 0.439 | H150: 0.007 | I150: 0.012 | J150: 0.04
A151: 113 | B151: -17.73086516 | C151: 7.425931533 | E151: 61 | F151: 0.501 | G151: 0.438 | H151: 0.005 | I151: 0.014 | J151: 0.042
A152: 114 | B152: -9.52387484 | C152: -19.00477994 | E152: 62 | F152: 0.501 | G152: 0.438 | H152: 0.004 | I152: 0.014 | J152: 0.043
A153: 115 | B153: 11.55260285 | C153: 1.425221147 | E153: 63 | F153: 0.5 | G153: 0.437 | H153: 0.004 | I153: 0.01 | J153: 0.049
A154: 116 | B154: 13.43719068 | C154: -12.12830316 | E154: 64 | F154: 0.499 | G154: 0.434 | H154: 0.006 | I154: 0.011 | J154: 0.05
A155: 117 | B155: 18.93773639 | C155: -6.503676798 | E155: 65 | F155: 0.498 | G155: 0.434 | H155: 0.007 | I155: 0.009 | J155: 0.052
A156: 118 | B156: -0.05296412725 | C156: -6.713128127 | E156: 66 | F156: 0.498 | G156: 0.432 | H156: 0.007 | I156: 0.007 | J156: 0.056
A157: 119 | B157: -22.62343776 | C157: -23.2678591 | E157: 67 | F157: 0.498 | G157: 0.429 | H157: 0.006 | I157: 0.01 | J157: 0.057
A158: 120 | B158: -1.614592003 | C158: 1.84516608 | E158: 68 | F158: 0.497 | G158: 0.428 | H158: 0.007 | I158: 0.009 | J158: 0.059
A159: 121 | B159: 18.74186825 | C159: 16.7344558 | E159: 69 | F159: 0.496 | G159: 0.427 | H159: 0.007 | I159: 0.009 | J159: 0.061
A160: 122 | B160: 9.223666412 | C160: 23.53814254 | E160: 70 | F160: 0.496 | G160: 0.426 | H160: 0.005 | I160: 0.012 | J160: 0.061
A161: 123 | B161: -16.75158097 | C161: -14.83255725 | E161: 71 | F161: 0.496 | G161: 0.424 | H161: 0.005 | I161: 0.012 | J161: 0.063
A162: 124 | B162: 14.09527438 | C162: 23.37188277 | E162: 72 | F162: 0.496 | G162: 0.422 | H162: 0.005 | I162: 0.01 | J162: 0.067
A163: 125 | B163: 22.86010335 | C163: -5.611121788 | E163: 73 | F163: 0.495 | G163: 0.42 | H163: 0.007 | I163: 0.01 | J163: 0.068
A164: 126 | B164: -1.602702446 | C164: 20.53769955 | E164: 74 | F164: 0.495 | G164: 0.42 | H164: 0.005 | I164: 0.01 | J164: 0.07
A165: 127 | B165: 9.972742611 | C165: 23.4106733 | E165: 75 | F165: 0.495 | G165: 0.416 | H165: 0.007 | I165: 0.009 | J165: 0.073
A166: 128 | B166: 11.51397337 | C166: -1.431632356 | E166: 76 | F166: 0.493 | G166: 0.411 | H166: 0.011 | I166: 0.01 | J166: 0.075
A167: 129 | B167: 17.37172462 | C167: 9.154043881 | E167: 77 | F167: 0.492 | G167: 0.408 | H167: 0.015 | I167: 0.008 | J167: 0.077
A168: 130 | B168: 5.400569671 | C168: -16.52216416 | E168: 78 | F168: 0.492 | G168: 0.406 | H168: 0.013 | I168: 0.011 | J168: 0.078
A169: 131 | B169: -10.77058208 | C169: -12.04172513 | E169: 79 | F169: 0.492 | G169: 0.404 | H169: 0.008 | I169: 0.016 | J169: 0.08
A170: 132 | B170: -21.13819094 | C170: 8.18541426 | E170: 80 | F170: 0.492 | G170: 0.399 | H170: 0.009 | I170: 0.018 | J170: 0.082
A171: 133 | B171: -22.63898275 | C171: -9.528830194 | E171: 81 | F171: 0.491 | G171: 0.397 | H171: 0.01 | I171: 0.017 | J171: 0.085
A172: 134 | B172: 3.144061411 | C172: -15.11306718 | E172: 82 | F172: 0.49 | G172: 0.394 | H172: 0.012 | I172: 0.019 | J172: 0.085
A173: 135 | B173: -8.379623709 | C173: -15.34372152 | E173: 83 | F173: 0.489 | G173: 0.392 | H173: 0.01 | I173: 0.02 | J173: 0.089
A174: 136 | B174: 5.177086114 | C174: -21.22419836 | E174: 84 | F174: 0.488 | G174: 0.388 | H174: 0.012 | I174: 0.016 | J174: 0.096
A175: 137 | B175: -0.9153156904 | C175: -17.9238556 | E175: 85 | F175: 0.487 | G175: 0.387 | H175: 0.01 | I175: 0.016 | J175: 0.1
A176: 138 | B176: -9.487378706 | C176: 2.898931164 | E176: 86 | F176: 0.487 | G176: 0.385 | H176: 0.009 | I176: 0.017 | J176: 0.102
A177: 139 | B177: -8.835209506 | C177: -11.53982005 | E177: 87 | F177: 0.487 | G177: 0.384 | H177: 0.005 | I177: 0.02 | J177: 0.104
A178: 140 | B178: 24.72993126 | C178: -9.375042449 | E178: 88 | F178: 0.483 | G178: 0.381 | H178: 0.01 | I178: 0.017 | J178: 0.109
A179: 141 | B179: 19.34893134 | C179: 22.21700629 | E179: 89 | F179: 0.482 | G179: 0.38 | H179: 0.01 | I179: 0.016 | J179: 0.112
A180: 142 | B180: -8.976978174 | C180: -7.725547707 | E180: 90 | F180: 0.482 | G180: 0.379 | H180: 0.01 | I180: 0.013 | J180: 0.116
A181: 143 | B181: -6.175276776 | C181: -2.289742288 | E181: 91 | F181: 0.481 | G181: 0.375 | H181: 0.008 | I181: 0.017 | J181: 0.119
A182: 144 | B182: 23.85955849 | C182: 24.96270752 | E182: 92 | F182: 0.481 | G182: 0.371 | H182: 0.01 | I182: 0.014 | J182: 0.124
A183: 145 | B183: -15.14790304 | C183: 21.50690712 | E183: 93 | F183: 0.481 | G183: 0.368 | H183: 0.012 | I183: 0.013 | J183: 0.126
A184: 146 | B184: -15.44515324 | C184: -7.804520971 | E184: 94 | F184: 0.48 | G184: 0.367 | H184: 0.009 | I184: 0.016 | J184: 0.128
A185: 147 | B185: 17.87583854 | C185: -11.1959278 | E185: 95 | F185: 0.48 | G185: 0.365 | H185: 0.007 | I185: 0.019 | J185: 0.129
A186: 148 | B186: 3.051710912 | C186: 7.393471745 | E186: 96 | F186: 0.478 | G186: 0.362 | H186: 0.009 | I186: 0.015 | J186: 0.136
A187: 149 | B187: 14.54761372 | C187: 10.88452022 | E187: 97 | F187: 0.477 | G187: 0.359 | H187: 0.011 | I187: 0.015 | J187: 0.138
A188: 150 | B188: 17.4251125 | C188: -15.06898917 | E188: 98 | F188: 0.476 | G188: 0.357 | H188: 0.012 | I188: 0.016 | J188: 0.139
A189: 151 | B189: 12.23747747 | C189: -0.7809748048 | E189: 99 | F189: 0.476 | G189: 0.356 | H189: 0.008 | I189: 0.016 | J189: 0.144
A190: 152 | B190: 15.57369255 | C190: -17.58630669 | E190: 100 | F190: 0.475 | G190: 0.353 | H190: 0.008 | I190: 0.016 | J190: 0.148
A191: 153 | B191: -17.01484443 | C191: -7.968244785 | E191: 101 | F191: 0.474 | G191: 0.349 | H191: 0.01 | I191: 0.016 | J191: 0.151
A192: 154 | B192: 12.44100708 | C192: 19.16991303 | E192: 102 | F192: 0.474 | G192: 0.347 | H192: 0.011 | I192: 0.015 | J192: 0.153
A193: 155 | B193: -11.36307137 | C193: -2.348365441 | E193: 103 | F193: 0.474 | G193: 0.344 | H193: 0.01 | I193: 0.017 | J193: 0.155
A194: 156 | B194: -23.04927967 | C194: 5.46499902 | E194: 104 | F194: 0.473 | G194: 0.341 | H194: 0.009 | I194: 0.017 | J194: 0.16
A195: 157 | B195: -20.87245117 | C195: -18.65957352 | E195: 105 | F195: 0.473 | G195: 0.338 | H195: 0.01 | I195: 0.015 | J195: 0.164
A196: 158 | B196: 17.97741114 | C196: -16.11756488 | E196: 106 | F196: 0.472 | G196: 0.337 | H196: 0.009 | I196: 0.015 | J196: 0.167
A197: 159 | B197: -19.42717638 | C197: -12.66090624 | E197: 107 | F197: 0.47 | G197: 0.334 | H197: 0.01 | I197: 0.018 | J197: 0.168
A198: 160 | B198: 16.5570137 | C198: 23.3426862 | E198: 108 | F198: 0.468 | G198: 0.33 | H198: 0.013 | I198: 0.017 | J198: 0.172
A199: 161 | B199: -23.84946364 | C199: 17.32150138 | E199: 109 | F199: 0.467 | G199: 0.329 | H199: 0.013 | I199: 0.014 | J199: 0.177
A200: 162 | B200: 24.35025445 | C200: -5.294789695 | E200: 110 | F200: 0.467 | G200: 0.324 | H200: 0.013 | I200: 0.017 | J200: 0.179
A201: 163 | B201: -10.20400279 | C201: -2.262869288 | E201: 111 | F201: 0.464 | G201: 0.318 | H201: 0.016 | I201: 0.02 | J201: 0.182
A202: 164 | B202: -8.657783272 | C202: 20.92273755 | E202: 112 | F202: 0.464 | G202: 0.317 | H202: 0.015 | I202: 0.018 | J202: 0.186
A203: 165 | B203: -20.79488975 | C203: 1.761031453 | E203: 113 | F203: 0.463 | G203: 0.314 | H203: 0.014 | I203: 0.02 | J203: 0.189
A204: 166 | B204: 24.81538465 | C204: -21.71615801 | E204: 114 | F204: 0.462 | G204: 0.31 | H204: 0.01 | I204: 0.027 | J204: 0.191
A205: 167 | B205: -5.586519156 | C205: -4.346540222 | E205: 115 | F205: 0.46 | G205: 0.307 | H205: 0.014 | I205: 0.023 | J205: 0.196
A206: 168 | B206: 16.39760821 | C206: 2.704276604 | E206: 116 | F206: 0.458 | G206: 0.305 | H206: 0.014 | I206: 0.021 | J206: 0.202
A207: 169 | B207: 17.48977973 | C207: -3.303410453 | E207: 117 | F207: 0.456 | G207: 0.3 | H207: 0.016 | I207: 0.024 | J207: 0.204
A208: 170 | B208: 12.76450756 | C208: 1.002238556 | E208: 118 | F208: 0.455 | G208: 0.297 | H208: 0.015 | I208: 0.024 | J208: 0.209
A209: 171 | B209: 12.68497241 | C209: 14.47131439 | E209: 119 | F209: 0.454 | G209: 0.295 | H209: 0.014 | I209: 0.019 | J209: 0.218
A210: 172 | B210: 18.85266224 | C210: 17.56513464 | E210: 120 | F210: 0.453 | G210: 0.292 | H210: 0.011 | I210: 0.025 | J210: 0.219
A211: 173 | B211: -15.080332 | C211: 13.56097364 | E211: 121 | F211: 0.452 | G211: 0.288 | H211: 0.012 | I211: 0.025 | J211: 0.223
A212: 174 | B212: 13.72805275 | C212: -24.02129577 | E212: 122 | F212: 0.451 | G212: 0.285 | H212: 0.013 | I212: 0.023 | J212: 0.228
A213: 175 | B213: -20.14521168 | C213: -21.77172465 | E213: 123 | F213: 0.45 | G213: 0.28 | H213: 0.015 | I213: 0.022 | J213: 0.233
A214: 176 | B214: 7.948447837 | C214: 2.425983199 | E214: 124 | F214: 0.45 | G214: 0.278 | H214: 0.012 | I214: 0.023 | J214: 0.237
A215: 177 | B215: -20.31901505 | C215: -4.150383702 | E215: 125 | F215: 0.448 | G215: 0.272 | H215: 0.016 | I215: 0.02 | J215: 0.244
A216: 178 | B216: 0.3122524593 | C216: -2.288796957 | E216: 126 | F216: 0.448 | G216: 0.266 | H216: 0.016 | I216: 0.022 | J216: 0.248
A217: 179 | B217: 12.04782531 | C217: 17.3059485 | E217: 127 | F217: 0.448 | G217: 0.263 | H217: 0.017 | I217: 0.021 | J217: 0.251
A218: 180 | B218: 22.36973245 | C218: -18.70011148 | E218: 128 | F218: 0.448 | G218: 0.261 | H218: 0.011 | I218: 0.025 | J218: 0.255
A219: 181 | B219: -24.98802756 | C219: -13.87001112 | E219: 129 | F219: 0.446 | G219: 0.257 | H219: 0.011 | I219: 0.026 | J219: 0.26
A220: 182 | B220: 15.72072035 | C220: -0.3999121622 | E220: 130 | F220: 0.444 | G220: 0.254 | H220: 0.013 | I220: 0.025 | J220: 0.264
A221: 183 | B221: 20.94979656 | C221: -19.10288989 | E221: 131 | F221: 0.442 | G221: 0.252 | H221: 0.015 | I221: 0.021 | J221: 0.27
A222: 184 | B222: 21.51171028 | C222: -2.92542614 | E222: 132 | F222: 0.44 | G222: 0.25 | H222: 0.013 | I222: 0.025 | J222: 0.272
A223: 185 | B223: 18.88087276 | C223: 14.21438077 | E223: 133 | F223: 0.439 | G223: 0.248 | H223: 0.011 | I223: 0.022 | J223: 0.28
A224: 186 | B224: 5.353561763 | C224: -7.077731009 | E224: 134 | F224: 0.438 | G224: 0.244 | H224: 0.012 | I224: 0.02 | J224: 0.286
A225: 187 | B225: -11.95211746 | C225: 2.614671664 | E225: 135 | F225: 0.436 | G225: 0.24 | H225: 0.014 | I225: 0.021 | J225: 0.289
A226: 188 | B226: -17.34023137 | C226: -0.6619255959 | E226: 136 | F226: 0.435 | G226: 0.239 | H226: 0.013 | I226: 0.022 | J226: 0.291
A227: 189 | B227: -15.80104733 | C227: 13.64985957 | E227: 137 | F227: 0.434 | G227: 0.237 | H227: 0.011 | I227: 0.021 | J227: 0.297
A228: 190 | B228: -4.237171216 | C228: -0.1434535733 | E228: 138 | F228: 0.434 | G228: 0.231 | H228: 0.011 | I228: 0.022 | J228: 0.302
A229: 191 | B229: 12.45109426 | C229: 0.7859401076 | E229: 139 | F229: 0.432 | G229: 0.23 | H229: 0.012 | I229: 0.02 | J229: 0.306
A230: 192 | B230: -0.8180490141 | C230: 19.1225169 | E230: 140 | F230: 0.431 | G230: 0.228 | H230: 0.012 | I230: 0.019 | J230: 0.31
A231: 193 | B231: -19.56254687 | C231: -10.38186829 | E231: 141 | F231: 0.43 | G231: 0.227 | H231: 0.008 | I231: 0.022 | J231: 0.313
A232: 194 | B232: -4.951578827 | C232: -0.6604799968 | E232: 142 | F232: 0.429 | G232: 0.225 | H232: 0.008 | I232: 0.02 | J232: 0.318
A233: 195 | B233: 0.1098537994 | C233: -24.89232961 | E233: 143 | F233: 0.429 | G233: 0.221 | H233: 0.009 | I233: 0.017 | J233: 0.324
A234: 196 | B234: 2.589870726 | C234: 19.77052904 | E234: 144 | F234: 0.429 | G234: 0.22 | H234: 0.008 | I234: 0.017 | J234: 0.326
A235: 197 | B235: 2.774363798 | C235: 20.02740377 | E235: 145 | F235: 0.427 | G235: 0.217 | H235: 0.01 | I235: 0.017 | J235: 0.329
A236: 198 | B236: -2.324662231 | C236: -18.93068651 | E236: 146 | F236: 0.427 | G236: 0.216 | H236: 0.007 | I236: 0.015 | J236: 0.335
... 802 more rows

Sheet Statistik1
A1: Statistische Auswertungen zu Simulation 1
A3: Parametersatz: | C3: Infektiosität | E3: von Tag | F3: 4 | G3: bis Tag | H3: 8
G4: Infektionswahrscheinlichkeit | H4: 0.25 | I4: (pro Kontakt)
E5: Impfquote | F5: 0.5 | G5: Schutz | H5: 0.9 | I5: → Durchseuchung
A7: Ergebnisse: | C7: Nr. | D7: Tage | E7: erkrankt | G7: un- | H7: geimpft
C8: 1 | D8: 205 | E8: 0.7648283039 | G8: 0.9960474308 | H8: 0.5066079295
C9: 2 | D9: 129 | E9: 0.7232049948 | G9: 0.9873417722 | H9: 0.4650205761
C10: 3 | D10: 141 | E10: 0.7304890739 | G10: 0.9749478079 | H10: 0.4864864865
C11: 4 | D11: 172 | E11: 0.7627471384 | G11: 0.996031746 | H11: 0.5043859649
C12: 5 | D12: 135 | E12: 0.7200832466 | G12: 0.9691358025 | H12: 0.4641350211
B13: Mittelwert | D13: =AVERAGE(D8:D12) -> 156.4 | E13: =AVERAGE(E8:E12) -> 0.7402705515 | G13: =AVERAGE(G8:G12) -> 0.9847009119 | H13: =AVERAGE(H8:H12) -> 0.4853271956 | I13: → | J13: Die Impfung schützt fast
B14: Standardabw. | D14: =STDEV(D8:D12) -> 31.82451885 | E14: =STDEV(E8:E12) -> 0.02181007776 | G14: =STDEV(G8:G12) -> 0.01226275974 | H14: =STDEV(H8:H12) -> 0.02048729688 | J14: nur die Geimpften, von de-
J15: nen auch viele erkranken.
A17: Parametersatz: | C17: Infektiosität | E17: von Tag | F17: 4 | G17: bis Tag | H17: 8
G18: Infektionswahrscheinlichkeit | H18: 0.25 | I18: (pro Kontakt)
E19: Impfquote | F19: 0.75 | G19: Schutz | H19: 0.9 | I19: → Herdenimmunität
A21: Ergebnisse: | C21: Nr. | D21: Tage | E21: erkrankt | G21: un- | H21: geimpft
C22: 1 | D22: 139 | E22: 0.1238293444 | G22: 0.2183908046 | H22: 0.08726752504
C23: 2 | D23: 63 | E23: 0.0593132154 | G23: 0.1160714286 | H23: 0.04076086957
C24: 3 | D24: 143 | E24: 0.1935483871 | G24: 0.4391304348 | H24: 0.1150684932
C25: 4 | D25: 109 | E25: 0.1238293444 | G25: 0.2222222222 | H25: 0.08757062147
C26: 5 | D26: 84 | E26: 0.03746097815 | G26: 0.07575757576 | H26: 0.02155172414
C27: 6 | D27: 57 | E27: 0.04058272633 | G27: 0.08558558559 | H27: 0.02574525745
C28: 7 | D28: 87 | E28: 0.0551508845 | G28: 0.1264822134 | H28: 0.02828854314
C29: 8 | D29: 145 | E29: 0.2528616025 | G29: 0.5252918288 | H29: 0.1522048364
C30: 9 | D30: 201 | E30: 0.2237252862 | G30: 0.474137931 | H30: 0.1524725275
C31: 10 | D31: 104 | E31: 0.06451612903 | G31: 0.1379310345 | H31: 0.03983516484
B32: Mittelwert | D32: =AVERAGE(D22:D31) -> 113.2 | E32: =AVERAGE(E22:E31) -> 0.1174817898 | G32: =AVERAGE(G22:G31) -> 0.2421001059 | H32: =AVERAGE(H22:H31) -> 0.07507655627 | I32: → | J32: Die Impfung schützt auch
B33: Standardabw. | D33: =STDEV(D22:D31) -> 44.21362284 | E33: =STDEV(E22:E31) -> 0.0801893361 | G33: =STDEV(G22:G31) -> 0.1719450391 | H33: =STDEV(H22:H31) -> 0.05137023484 | J33: viele Ungeimpfte.

Sheet Statistik2
A1: Statistische Auswertungen zu Simulation 2
A3: Parametersatz: | C3: Infektiosität | E3: von Tag | F3: 4 | G3: bis Tag | H3: 8 | I3: Diffusion
G4: Infektionsradius | H4: 2 | I4: μr = | J4: 1
G5: Infektionswahrscheinlichkeit | H5: 0.25 | I5: (pro Kontakt)
E6: Impfquote | F6: 0.5 | G6: Schutz | H6: 0.9 | I6: → Durchseuchung
A8: Ergebnisse: | C8: Nr. | D8: Tage | E8: erkrankt | G8: un- | H8: geimpft
C9: 1 | D9: 162 | E9: 0.595 | G9: 0.8715953307 | H9: 0.3010309278
C10: 2 | D10: 260 | E10: 0.5 | G10: 0.746124031 | H10: 0.2360248447
C11: 3 | D11: 160 | E11: 0.498 | G11: 0.7728194726 | H11: 0.2292490119
C12: 4 | D12: 194 | E12: 0.611 | G12: 0.8735849057 | H12: 0.3134328358
C13: 5 | D13: 244 | E13: 0.461 | G13: 0.7044534413 | H13: 0.2217821782
B14: Mittelwert | D14: =AVERAGE(D9:D13) -> 204 | E14: =AVERAGE(E9:E13) -> 0.533 | G14: =AVERAGE(G9:G13) -> 0.7937154363 | H14: =AVERAGE(H9:H13) -> 0.2603039597 | I14: → | J14: Die Impfung schützt fast
B15: Standardabw. | D15: =STDEV(D9:D13) -> 46.19523785 | E15: =STDEV(E9:E13) -> 0.06600378777 | G15: =STDEV(G9:G13) -> 0.07601594734 | H15: =STDEV(H9:H13) -> 0.04335659197 | J15: nur die Geimpften, von de-
J16: nen auch viele erkranken.
A19: Parametersatz: | C19: Infektiosität | E19: von Tag | F19: 4 | G19: bis Tag | H19: 8 | I19: Diffusion
G20: Infektionsradius | H20: 2 | I20: μr = | J20: 1
G21: Infektionswahrscheinlichkeit | H21: 0.25 | I21: (pro Kontakt)
E22: Impfquote | F22: 0.75 | G22: Schutz | H22: 0.9 | I22: → Herdenimmunität
A24: Ergebnisse: | C24: Nr. | D24: Tage | E24: erkrankt | G24: un- | H24: geimpft
C25: 1 | D25: 25 | E25: 0.009 | G25: 0.02419354839 | H25: 0.002663115846
C26: 2 | D26: 39 | E26: 0.014 | G26: 0.0253164557 | H26: 0.009186351706
C27: 3 | D27: 55 | E27: 0.06 | G27: 0.1300813008 | H27: 0.03585657371
C28: 4 | D28: 46 | E28: 0.033 | G28: 0.08370044053 | H28: 0.01683937824
C29: 5 | D29: 166 | E29: 0.138 | G29: 0.3206751055 | H29: 0.08005249344
C30: 6 | D30: 34 | E30: 0.025 | G30: 0.06589147287 | H30: 0.009446693657
C31: 7 | D31: 19 | E31: 0.007 | G31: 0.0147601476 | H31: 0.002747252747
C32: 8 | D32: 60 | E32: 0.024 | G32: 0.06072874494 | H32: 0.01063829787
C33: 9 | D33: 149 | E33: 0.116 | G33: 0.304 | H33: 0.0520694259
C34: 10 | D34: 60 | E34: 0.014 | G34: 0.03404255319 | H34: 0.006544502618
B35: Mittelwert | D35: =AVERAGE(D25:D34) -> 65.3 | E35: =AVERAGE(E25:E34) -> 0.044 | G35: =AVERAGE(G25:G34) -> 0.106338977 | H35: =AVERAGE(H25:H34) -> 0.02260440857 | I35: → | J35: Die Impfung schützt auch
B36: Standardabw. | D36: =STDEV(D25:D34) -> 50.6843171 | E36: =STDEV(E25:E34) -> 0.04660948878 | G36: =STDEV(G25:G34) -> 0.1138850914 | H36: =STDEV(H25:H34) -> 0.0256549 | J36: viele Ungeimpfte.
